[Event "*** Titled Tuesday Blitz"]
[Site "Chess.com"]
[Date "2019.03.05"]
[Round "3"]
[White "Jbd735"]
[Black "Orange_Ghost"]
[Result "0-1"]
[WhiteElo "2471"]
[BlackElo "2554"]
[TimeControl "180+2"]
[EndTime "13:44:07 PST"]
[Termination "Orange_Ghost won on time"]

1. d4 {[%clk 0:03:01.9]} 1... Nf6 {[%clk 0:03:00]} 2. Nf3 {[%clk 0:03:02.2]}
2... g6 {[%clk 0:02:59.7]} 3. Bg5 {[%clk 0:02:52.4]} 3... Bg7 {[%clk 0:02:47]}
4. c4 {[%clk 0:02:38.3]} 4... O-O {[%clk 0:02:39.9]} 5. Nc3 {[%clk 0:02:38.3]}
5... d5 {[%clk 0:02:37.6]} 6. Bxf6 {[%clk 0:02:30.1]} 6... Bxf6 {[%clk 0:02:33]}
7. cxd5 {[%clk 0:02:14.3]} 7... c5 {[%clk 0:02:18.9]} 8. dxc6 {[%clk 0:01:50.4]}
8... Nxc6 {[%clk 0:02:01.2]} 9. e3 {[%clk 0:01:51]} 9... Qa5 {[%clk 0:01:56.4]}
10. Qd2 {[%clk 0:01:29.7]} 10... Rd8 {[%clk 0:01:41.4]} 11. Ne4 {[%clk 0:01:25]}
11... Qxd2+ {[%clk 0:01:32.2]} 12. Nfxd2 {[%clk 0:01:24.9]} 12... Bg7 {[%clk
0:01:23]} 13. f4 {[%clk 0:01:25.4]} 13... Nb4 {[%clk 0:01:08.2]} 14. Kf2 {[%clk
0:01:26.3]} 14... Be6 {[%clk 0:01:02.5]} 15. a3 {[%clk 0:01:25.5]} 15... Nd5
{[%clk 0:00:55.5]} 16. Nc5 {[%clk 0:01:24.5]} 16... Bc8 {[%clk 0:00:40.6]} 17.
Bc4 {[%clk 0:01:25.1]} 17... b6 {[%clk 0:00:41.3]} 18. Nce4 {[%clk 0:01:25.3]}
18... Bb7 {[%clk 0:00:41.7]} 19. Rac1 {[%clk 0:01:18.4]} 19... Rac8 {[%clk
0:00:40.8]} 20. Bb3 {[%clk 0:01:05.6]} 20... Bf8 {[%clk 0:00:33]} 21. h4 {[%clk
0:00:59.7]} 21... h5 {[%clk 0:00:29.4]} 22. Ng5 {[%clk 0:00:49.5]} 22... e6
{[%clk 0:00:27.4]} 23. Ndf3 {[%clk 0:00:47.4]} 23... Bd6 {[%clk 0:00:20.7]} 24.
Rhg1 {[%clk 0:00:34.9]} 24... Nf6 {[%clk 0:00:20]} 25. Ne5 {[%clk 0:00:29.3]}
25... Bxe5 {[%clk 0:00:21.1]} 26. fxe5 {[%clk 0:00:29.3]} 26... Ng4+ {[%clk
0:00:23]} 27. Ke2 {[%clk 0:00:28]} 27... Ba6+ {[%clk 0:00:23.1]} 28. Kf3 {[%clk
0:00:26.2]} 28... Bb7+ {[%clk 0:00:23.2]} 29. Kf4 {[%clk 0:00:20.7]} 29... Ba6
{[%clk 0:00:17.5]} 30. Ne4 {[%clk 0:00:18.5]} 30... Kg7 {[%clk 0:00:17.4]} 31.
Nd6 {[%clk 0:00:19.2]} 31... Rxc1 {[%clk 0:00:17.9]} 32. Rxc1 {[%clk 0:00:21.1]}
32... Rd7 {[%clk 0:00:19.8]} 33. Ba4 {[%clk 0:00:17.5]} 33... Re7 {[%clk
0:00:18.7]} 34. Rc3 {[%clk 0:00:12.1]} 34... f6 {[%clk 0:00:17.5]} 35. Ne8+
{[%clk 0:00:10.8]} 35... Kf7 {[%clk 0:00:18.6]} 36. Nxf6 {[%clk 0:00:08.4]}
36... Nxf6 {[%clk 0:00:19.6]} 37. exf6 {[%clk 0:00:10.2]} 37... Kxf6 {[%clk
0:00:21.5]} 38. e4 {[%clk 0:00:09.4]} 38... Bb7 {[%clk 0:00:21.9]} 39. g3 {[%clk
0:00:07.1]} 39... Rf7 {[%clk 0:00:21.7]} 40. Ke3 {[%clk 0:00:05.2]} 40... Kg7
{[%clk 0:00:21.4]} 41. Bc6 {[%clk 0:00:04.2]} 41... Bc8 {[%clk 0:00:21.1]} 42.
d5 {[%clk 0:00:04.9]} 42... exd5 {[%clk 0:00:19]} 43. exd5 {[%clk 0:00:06.8]}
43... Kf6 {[%clk 0:00:19]} 44. Kd4 {[%clk 0:00:08.1]} 44... Ke7 {[%clk 0:00:20]}
45. Re3+ {[%clk 0:00:06.7]} 45... Kd6 {[%clk 0:00:20.6]} 46. Re8 {[%clk
0:00:07.4]} 46... Bg4 {[%clk 0:00:21.7]} 47. Rg8 {[%clk 0:00:07.2]} 47... Bf5
{[%clk 0:00:21.7]} 48. Rd8+ {[%clk 0:00:07.9]} 48... Kc7 {[%clk 0:00:22.4]} 49.
Re8 {[%clk 0:00:08.2]} 49... Kd6 {[%clk 0:00:18.5]} 50. b4 {[%clk 0:00:08.4]}
50... Bg4 {[%clk 0:00:14.2]} 51. Rd8+ {[%clk 0:00:07.8]} 51... Kc7 {[%clk
0:00:15.3]} 52. Rg8 {[%clk 0:00:07.5]} 52... Bf5 {[%clk 0:00:16.2]} 53. Ke5
{[%clk 0:00:06.6]} 53... Re7+ {[%clk 0:00:17.2]} 54. Kf6 {[%clk 0:00:04.5]}
54... Re3 {[%clk 0:00:18.5]} 55. Rg7+ {[%clk 0:00:05.2]} 55... Kd6 {[%clk
0:00:19.2]} 56. Rxa7 {[%clk 0:00:06]} 56... Rxg3 {[%clk 0:00:19.1]} 57. a4
{[%clk 0:00:06.7]} 57... Rf3 {[%clk 0:00:19.5]} 58. Kg5 {[%clk 0:00:05.9]} 58...
Rg3+ {[%clk 0:00:19.9]} 59. Kf6 {[%clk 0:00:05.9]} 59... Rb3 {[%clk 0:00:21.8]}
60. a5 {[%clk 0:00:05.8]} 60... bxa5 {[%clk 0:00:16.2]} 61. bxa5 {[%clk
0:00:05.9]} 61... Bc8 {[%clk 0:00:16.2]} 62. Ra8 {[%clk 0:00:05.1]} 62... Rf3+
{[%clk 0:00:14.9]} 63. Kxg6 {[%clk 0:00:05.3]} 63... Bf5+ {[%clk 0:00:16.2]} 64.
Kxh5 {[%clk 0:00:05.8]} 64... Rg3 {[%clk 0:00:16.1]} 65. a6 {[%clk 0:00:05.2]}
65... Ke5 {[%clk 0:00:17.2]} 66. a7 {[%clk 0:00:05.2]} 66... Kf4 {[%clk
0:00:17.1]} 67. Rf8 {[%clk 0:00:04.8]} 67... Rg7 {[%clk 0:00:17.1]} 0-1

[Event "*** Titled Tuesday Blitz"]
[Site "Chess.com"]
[Date "2019.03.05"]
[Round "3"]
[White "SARGISMV"]
[Black "Arystanner"]
[Result "0-1"]
[WhiteElo "2429"]
[BlackElo "2651"]
[TimeControl "180+2"]
[EndTime "13:44:08 PST"]
[Termination "Arystanner won by checkmate"]

1. d4 {[%clk 0:03:00.5]} 1... Nf6 {[%clk 0:02:55.7]} 2. c4 {[%clk 0:03:00.4]}
2... e6 {[%clk 0:02:56.9]} 3. Nc3 {[%clk 0:03:01.2]} 3... Bb4 {[%clk 0:02:56.5]}
4. e3 {[%clk 0:03:02.4]} 4... b6 {[%clk 0:02:57.5]} 5. Ne2 {[%clk 0:03:01.3]}
5... Ne4 {[%clk 0:02:56]} 6. Qc2 {[%clk 0:02:59.9]} 6... Bb7 {[%clk 0:02:56.8]}
7. a3 {[%clk 0:03:00.2]} 7... Bxc3+ {[%clk 0:02:57.9]} 8. Nxc3 {[%clk
0:03:02.1]} 8... Nxc3 {[%clk 0:02:59.4]} 9. Qxc3 {[%clk 0:03:03.5]} 9... a5
{[%clk 0:03:00.8]} 10. b3 {[%clk 0:03:03.8]} 10... O-O {[%clk 0:03:00.5]} 11.
Bb2 {[%clk 0:03:05]} 11... d6 {[%clk 0:02:57.6]} 12. Bd3 {[%clk 0:03:01.4]}
12... Bxg2 {[%clk 0:02:35.8]} 13. Rg1 {[%clk 0:02:59.5]} 13... Bf3 {[%clk
0:02:36.5]} 14. Rg3 {[%clk 0:02:53.8]} 14... Bh5 {[%clk 0:02:35.7]} 15. f4
{[%clk 0:02:38.3]} 15... Nd7 {[%clk 0:02:31.2]} 16. Rg5 {[%clk 0:02:29.3]} 16...
Bg6 {[%clk 0:02:18.3]} 17. O-O-O {[%clk 0:02:30]} 17... Bxd3 {[%clk 0:01:54.9]}
18. Qxd3 {[%clk 0:02:28.8]} 18... f6 {[%clk 0:01:49.2]} 19. Rg3 {[%clk
0:02:25.6]} 19... Rf7 {[%clk 0:01:48.9]} 20. Rdg1 {[%clk 0:02:24.5]} 20... Nf8
{[%clk 0:01:48.4]} 21. h4 {[%clk 0:02:24.3]} 21... Qe7 {[%clk 0:01:46.8]} 22. h5
{[%clk 0:02:25.4]} 22... h6 {[%clk 0:01:48.1]} 23. Qe2 {[%clk 0:02:01.1]} 23...
Re8 {[%clk 0:01:47.1]} 24. Qg2 {[%clk 0:02:00]} 24... Kh8 {[%clk 0:01:48.2]} 25.
Kb1 {[%clk 0:01:53.4]} 25... Qd7 {[%clk 0:01:41.4]} 26. Ka2 {[%clk 0:01:53]}
26... a4 {[%clk 0:01:42.2]} 27. b4 {[%clk 0:01:51.2]} 27... d5 {[%clk
0:01:43.5]} 28. c5 {[%clk 0:01:47.9]} 28... b5 {[%clk 0:01:34]} 29. c6 {[%clk
0:01:36.3]} 29... Qe7 {[%clk 0:01:33.6]} 30. Qe2 {[%clk 0:01:30]} 30... Rb8
{[%clk 0:01:32.7]} 31. Rc1 {[%clk 0:01:28.3]} 31... Qd6 {[%clk 0:01:14.5]} 32.
Rc5 {[%clk 0:01:27]} 32... Rb6 {[%clk 0:01:15.7]} 33. Rxb5 {[%clk 0:01:18.5]}
33... Qxc6 {[%clk 0:01:13.8]} 34. Rc5 {[%clk 0:01:16.1]} 34... Qd6 {[%clk
0:01:14.9]} 35. Qc2 {[%clk 0:01:11.1]} 35... f5 {[%clk 0:01:12.5]} 36. Qxa4
{[%clk 0:01:10.8]} 36... Nd7 {[%clk 0:01:06.1]} 37. Rc1 {[%clk 0:01:05]} 37...
Nf6 {[%clk 0:01:05.1]} 38. Rg6 {[%clk 0:00:49.3]} 38... Nxh5 {[%clk 0:00:56.4]}
39. Qe8+ {[%clk 0:00:39.5]} 39... Rf8 {[%clk 0:00:57.7]} 40. Rxh6+ {[%clk
0:00:39.8]} 40... gxh6 {[%clk 0:00:54.3]} 41. Qxh5 {[%clk 0:00:41.5]} 41... Rf6
{[%clk 0:00:50.9]} 42. Rg1 {[%clk 0:00:18.2]} 42... Rb8 {[%clk 0:00:52.2]} 43.
Bc3 {[%clk 0:00:17.7]} 43... Qc6 {[%clk 0:00:50.4]} 44. Kb2 {[%clk 0:00:18.1]}
44... Rg8 {[%clk 0:00:46.2]} 45. Rxg8+ {[%clk 0:00:17.7]} 45... Kxg8 {[%clk
0:00:48.1]} 46. Qh4 {[%clk 0:00:17.6]} 46... Kf7 {[%clk 0:00:48.7]} 47. Qh5+
{[%clk 0:00:18.6]} 47... Rg6 {[%clk 0:00:49.7]} 48. Qh4 {[%clk 0:00:19.5]} 48...
Qd7 {[%clk 0:00:49.6]} 49. Kb3 {[%clk 0:00:20.4]} 49... Qe7 {[%clk 0:00:50.2]}
50. Qh5 {[%clk 0:00:21.7]} 50... Kg7 {[%clk 0:00:50.7]} 51. a4 {[%clk
0:00:21.5]} 51... c6 {[%clk 0:00:51.7]} 52. a5 {[%clk 0:00:22.7]} 52... Rg1
{[%clk 0:00:47.5]} 53. Qe2 {[%clk 0:00:22.3]} 53... Qb7 {[%clk 0:00:41.2]} 54.
Qh2 {[%clk 0:00:21.4]} 54... Rg4 {[%clk 0:00:31.8]} 55. Qh5 {[%clk 0:00:21.6]}
55... Qa6 {[%clk 0:00:30.3]} 56. Qe8 {[%clk 0:00:21.4]} 56... Qc4+ {[%clk
0:00:31.6]} 57. Ka4 {[%clk 0:00:18.9]} 57... Qxc3 {[%clk 0:00:33]} 58. Qe7+
{[%clk 0:00:19.2]} 58... Kg6 {[%clk 0:00:34.4]} 59. Qe8+ {[%clk 0:00:20.4]}
59... Kf6 {[%clk 0:00:34.2]} 60. Qf8+ {[%clk 0:00:21.2]} 60... Kg6 {[%clk
0:00:35.6]} 61. Qe8+ {[%clk 0:00:20.3]} 61... Kh7 {[%clk 0:00:36.9]} 62. Qxe6
{[%clk 0:00:19.5]} 62... Qc2+ {[%clk 0:00:37.1]} 63. Ka3 {[%clk 0:00:19.8]}
63... Qc1+ {[%clk 0:00:38.4]} 64. Ka4 {[%clk 0:00:17.6]} 64... Qc2+ {[%clk
0:00:39.5]} 65. Ka3 {[%clk 0:00:16.7]} 65... Rg7 {[%clk 0:00:39.8]} 66. a6
{[%clk 0:00:14.7]} 66... Qc1+ {[%clk 0:00:37.5]} 67. Ka4 {[%clk 0:00:15.6]}
67... Qa1+ {[%clk 0:00:35.8]} 68. Kb3 {[%clk 0:00:16.9]} 68... Qb1+ {[%clk
0:00:36.4]} 69. Ka4 {[%clk 0:00:18]} 69... Qc2+ {[%clk 0:00:37.7]} 70. Ka3
{[%clk 0:00:19.3]} 70... h5 {[%clk 0:00:39]} 71. Qf6 {[%clk 0:00:16.8]} 71...
Qc1+ {[%clk 0:00:38.1]} 72. Ka4 {[%clk 0:00:18.1]} 72... Qa1+ {[%clk 0:00:36.1]}
73. Kb3 {[%clk 0:00:19.2]} 73... Qb1+ {[%clk 0:00:37.7]} 74. Ka4 {[%clk
0:00:20.3]} 74... Qa2# {[%clk 0:00:38.5]} 0-1

[Event "*** Titled Tuesday Blitz"]
[Site "Chess.com"]
[Date "2019.03.05"]
[Round "3"]
[White "Off-War"]
[Black "PulpanJ"]
[Result "1-0"]
[WhiteElo "2517"]
[BlackElo "2658"]
[TimeControl "180+2"]
[EndTime "13:44:55 PST"]
[Termination "Off-War won by resignation"]

1. e4 {[%clk 0:03:01.9]} 1... e5 {[%clk 0:03:01.1]} 2. Nf3 {[%clk 0:03:02.7]}
2... Nc6 {[%clk 0:02:56.9]} 3. Bb5 {[%clk 0:03:03]} 3... Nf6 {[%clk 0:02:56.9]}
4. O-O {[%clk 0:03:00.7]} 4... Nxe4 {[%clk 0:02:58]} 5. d4 {[%clk 0:02:58.8]}
5... Nd6 {[%clk 0:02:57.2]} 6. Bxc6 {[%clk 0:02:59.6]} 6... dxc6 {[%clk
0:02:57.3]} 7. dxe5 {[%clk 0:03:01.5]} 7... Nf5 {[%clk 0:02:58.7]} 8. Qxd8+
{[%clk 0:03:03.4]} 8... Kxd8 {[%clk 0:03:00.5]} 9. h3 {[%clk 0:03:05.3]} 9... h5
{[%clk 0:03:01.2]} 10. Nc3 {[%clk 0:03:06.3]} 10... Ke8 {[%clk 0:03:02.7]} 11.
Rd1 {[%clk 0:02:41.9]} 11... Be7 {[%clk 0:02:58.6]} 12. Bg5 {[%clk 0:02:41.6]}
12... Be6 {[%clk 0:02:54.8]} 13. Bxe7 {[%clk 0:02:42.4]} 13... Nxe7 {[%clk
0:02:55.1]} 14. Ng5 {[%clk 0:02:43.3]} 14... Bf5 {[%clk 0:02:52.3]} 15. Rd2
{[%clk 0:02:44.1]} 15... h4 {[%clk 0:02:37.6]} 16. Ne2 {[%clk 0:02:34.2]} 16...
Rh5 {[%clk 0:02:30.4]} 17. f4 {[%clk 0:02:34.2]} 17... Nd5 {[%clk 0:02:28.3]}
18. Nf3 {[%clk 0:02:29.4]} 18... Be4 {[%clk 0:02:22.7]} 19. Ng5 {[%clk 0:02:23]}
19... Bf5 {[%clk 0:02:22.5]} 20. g4 {[%clk 0:02:24]} 20... hxg3 {[%clk
0:02:18.6]} 21. Nxg3 {[%clk 0:02:25.1]} 21... Rxg5 {[%clk 0:02:06.6]} 22. fxg5
{[%clk 0:02:12.1]} 22... Bxh3 {[%clk 0:01:55.2]} 23. Rh2 {[%clk 0:02:07.4]}
23... Nf4 {[%clk 0:01:54.5]} 24. Rf1 {[%clk 0:02:01.4]} 24... Bxf1 {[%clk
0:01:54]} 25. Rh8+ {[%clk 0:02:03.3]} 25... Ke7 {[%clk 0:01:53]} 26. Rxa8 {[%clk
0:02:05.2]} 26... Ba6 {[%clk 0:01:47.9]} 27. Rc8 {[%clk 0:01:30.1]} 27... Kd7
{[%clk 0:01:42.2]} 28. Rg8 {[%clk 0:01:28.7]} 28... Ne6 {[%clk 0:01:29.8]} 29.
Ne4 {[%clk 0:01:22.5]} 29... Bc4 {[%clk 0:01:28.1]} 30. g6 {[%clk 0:00:49]}
30... fxg6 {[%clk 0:01:21.6]} 31. b3 {[%clk 0:00:50.1]} 31... Bd5 {[%clk
0:01:21.5]} 32. Nd2 {[%clk 0:00:51.7]} 32... c5 {[%clk 0:01:09.7]} 33. c4 {[%clk
0:00:53.1]} 33... Bc6 {[%clk 0:01:11]} 34. Kf2 {[%clk 0:00:54.1]} 34... Ke7
{[%clk 0:01:08.8]} 35. Ra8 {[%clk 0:00:51.4]} 35... a6 {[%clk 0:01:08.8]} 36.
Kg3 {[%clk 0:00:52.6]} 36... Nd8 {[%clk 0:00:57]} 37. Kf4 {[%clk 0:00:50.9]}
37... Nf7 {[%clk 0:00:58.1]} 38. Ne4 {[%clk 0:00:48.4]} 38... Nd8 {[%clk
0:00:24.5]} 39. Ng5 {[%clk 0:00:37.2]} 39... Bh1 {[%clk 0:00:21.8]} 40. Ne4
{[%clk 0:00:30.1]} 40... Ne6+ {[%clk 0:00:21.3]} 41. Ke3 {[%clk 0:00:31.5]}
41... Bxe4 {[%clk 0:00:20.5]} 42. Kxe4 {[%clk 0:00:33.4]} 42... Kd7 {[%clk
0:00:21.4]} 43. Rb8 {[%clk 0:00:32.4]} 43... b6 {[%clk 0:00:22.3]} 44. Rg8
{[%clk 0:00:28.6]} 44... a5 {[%clk 0:00:19.9]} 45. Rh8 {[%clk 0:00:17.4]} 45...
Ng5+ {[%clk 0:00:20.5]} 46. Kf4 {[%clk 0:00:15.7]} 46... Ne6+ {[%clk 0:00:20.3]}
47. Kg4 {[%clk 0:00:17]} 47... Ke7 {[%clk 0:00:19.9]} 48. Rc8 {[%clk 0:00:17.5]}
48... Kd7 {[%clk 0:00:19.6]} 49. Ra8 {[%clk 0:00:19]} 49... Ke7 {[%clk
0:00:20.5]} 50. Rh8 {[%clk 0:00:20.3]} 50... Kd7 {[%clk 0:00:21.6]} 51. Rh1
{[%clk 0:00:21.9]} 51... Ke7 {[%clk 0:00:21.4]} 52. Rf1 {[%clk 0:00:23.5]} 52...
Ke8 {[%clk 0:00:20.5]} 53. Rd1 {[%clk 0:00:23.7]} 53... Ke7 {[%clk 0:00:18.7]}
54. Kf3 {[%clk 0:00:24.6]} 54... Ke8 {[%clk 0:00:17.9]} 55. Ke4 {[%clk
0:00:26.1]} 55... Ke7 {[%clk 0:00:18.9]} 56. Rg1 {[%clk 0:00:27.2]} 56... g5
{[%clk 0:00:07.6]} 57. Rh1 {[%clk 0:00:27.6]} 57... Kd7 {[%clk 0:00:05.9]} 58.
Kf5 {[%clk 0:00:26.7]} 58... Nd4+ {[%clk 0:00:06.7]} 59. Kxg5 {[%clk 0:00:26.4]}
59... Ke6 {[%clk 0:00:08]} 60. Kf4 {[%clk 0:00:24.3]} 60... Ne2+ {[%clk
0:00:08.7]} 61. Ke3 {[%clk 0:00:23.9]} 61... Ng3 {[%clk 0:00:09.4]} 62. Rg1
{[%clk 0:00:22.7]} 62... Nf5+ {[%clk 0:00:10.5]} 63. Kf4 {[%clk 0:00:24.1]}
63... Nd4 {[%clk 0:00:02.3]} 64. Rxg7 {[%clk 0:00:23.2]} 64... Ne2+ {[%clk
0:00:04.2]} 65. Ke3 {[%clk 0:00:22.9]} 65... Nc3 {[%clk 0:00:05.1]} 66. Rxc7
{[%clk 0:00:19.7]} 66... Nxa2 {[%clk 0:00:05.8]} 67. Kf4 {[%clk 0:00:18.6]}
67... Nb4 {[%clk 0:00:06.3]} 68. Rb7 {[%clk 0:00:19.4]} 68... Nd3+ {[%clk
0:00:06.7]} 69. Ke4 {[%clk 0:00:20.8]} 69... Nf2+ {[%clk 0:00:07.4]} 70. Ke3
{[%clk 0:00:16.6]} 70... Ng4+ {[%clk 0:00:08.2]} 71. Kf4 {[%clk 0:00:17.9]}
71... Nf2 {[%clk 0:00:05.2]} 72. Rxb6+ {[%clk 0:00:19.8]} 72... Kd7 {[%clk
0:00:07.1]} 1-0

[Event "*** Titled Tuesday Blitz"]
[Site "Chess.com"]
[Date "2019.03.05"]
[Round "3"]
[White "Pechen_Yeltsina"]
[Black "riconaipe"]
[Result "1-0"]
[WhiteElo "2654"]
[BlackElo "2430"]
[TimeControl "180+2"]
[EndTime "13:46:12 PST"]
[Termination "Pechen_Yeltsina won by resignation"]

1. e4 {[%clk 0:03:01.9]} 1... c6 {[%clk 0:02:59]} 2. d3 {[%clk 0:03:01.5]} 2...
d5 {[%clk 0:02:58.9]} 3. Nd2 {[%clk 0:02:57.9]} 3... g6 {[%clk 0:02:56.8]} 4.
Ngf3 {[%clk 0:02:59.2]} 4... Bg7 {[%clk 0:02:49.3]} 5. g3 {[%clk 0:03:00.5]}
5... Nf6 {[%clk 0:02:48.1]} 6. Bg2 {[%clk 0:03:01.2]} 6... O-O {[%clk
0:02:46.6]} 7. O-O {[%clk 0:03:02.3]} 7... Bg4 {[%clk 0:02:46.7]} 8. h3 {[%clk
0:03:02.6]} 8... Bxf3 {[%clk 0:02:47.1]} 9. Qxf3 {[%clk 0:03:04.5]} 9... e6
{[%clk 0:02:47]} 10. Qe2 {[%clk 0:03:03.9]} 10... Nbd7 {[%clk 0:02:47.7]} 11. f4
{[%clk 0:03:05.2]} 11... dxe4 {[%clk 0:02:47.9]} 12. dxe4 {[%clk 0:03:05.7]}
12... e5 {[%clk 0:02:49.2]} 13. f5 {[%clk 0:03:03.1]} 13... Qc7 {[%clk
0:02:42.6]} 14. g4 {[%clk 0:03:03.9]} 14... h6 {[%clk 0:02:30]} 15. Nb3 {[%clk
0:02:58.2]} 15... Rad8 {[%clk 0:02:23.3]} 16. Be3 {[%clk 0:02:55.6]} 16... c5
{[%clk 0:02:18.6]} 17. Rad1 {[%clk 0:02:52.4]} 17... b6 {[%clk 0:02:18.5]} 18.
Rd2 {[%clk 0:02:39.1]} 18... Nb8 {[%clk 0:02:18.4]} 19. Rfd1 {[%clk 0:02:40.4]}
19... Nc6 {[%clk 0:02:17.8]} 20. c3 {[%clk 0:02:41.6]} 20... Rxd2 {[%clk
0:02:08.1]} 21. Rxd2 {[%clk 0:02:39.6]} 21... Rd8 {[%clk 0:02:07]} 22. Qd1
{[%clk 0:02:41]} 22... Rxd2 {[%clk 0:02:07]} 23. Qxd2 {[%clk 0:02:42.9]} 23...
Kh7 {[%clk 0:02:04.6]} 24. Bf3 {[%clk 0:02:43.5]} 24... Bf8 {[%clk 0:01:52.5]}
25. Kg2 {[%clk 0:02:38.5]} 25... Ne8 {[%clk 0:01:33.6]} 26. Qd5 {[%clk
0:02:27.3]} 26... Kg7 {[%clk 0:01:26.8]} 27. Nd2 {[%clk 0:02:21.7]} 27... Ne7
{[%clk 0:01:24.7]} 28. Qa8 {[%clk 0:02:17.4]} 28... Nc8 {[%clk 0:01:05.7]} 29.
Be2 {[%clk 0:02:05.5]} 29... Ncd6 {[%clk 0:01:02.7]} 30. Nc4 {[%clk 0:02:04]}
30... Nxc4 {[%clk 0:00:47.1]} 31. Bxc4 {[%clk 0:02:05.9]} 31... Qd7 {[%clk
0:00:43.1]} 32. Bd5 {[%clk 0:02:01.4]} 32... Be7 {[%clk 0:00:41.4]} 33. Qc6
{[%clk 0:01:27.6]} 33... Qxc6 {[%clk 0:00:40.1]} 34. Bxc6 {[%clk 0:01:29.5]}
34... Nd6 {[%clk 0:00:41.2]} 35. Kf3 {[%clk 0:01:29.2]} 35... g5 {[%clk
0:00:41.1]} 36. a4 {[%clk 0:01:29.8]} 36... Nc4 {[%clk 0:00:37.1]} 37. Bc1
{[%clk 0:01:31]} 37... Bd8 {[%clk 0:00:36.5]} 38. Bd5 {[%clk 0:01:29.4]} 38...
Nd6 {[%clk 0:00:37.1]} 39. Be3 {[%clk 0:01:30.1]} 39... Kf6 {[%clk 0:00:37.6]}
40. h4 {[%clk 0:01:28.1]} 40... Ne8 {[%clk 0:00:33.3]} 41. hxg5+ {[%clk
0:01:27.6]} 41... hxg5 {[%clk 0:00:35.2]} 42. Ke2 {[%clk 0:01:25.3]} 42... Nc7
{[%clk 0:00:36.1]} 43. Bc6 {[%clk 0:01:21.8]} 43... Kg7 {[%clk 0:00:34.9]} 44.
Kd3 {[%clk 0:01:22.5]} 44... f6 {[%clk 0:00:36.1]} 45. Kc4 {[%clk 0:01:23]}
45... Kf7 {[%clk 0:00:36.8]} 46. b4 {[%clk 0:01:24.5]} 46... cxb4 {[%clk
0:00:37.2]} 47. cxb4 {[%clk 0:01:26.4]} 47... Ke7 {[%clk 0:00:37.9]} 48. a5
{[%clk 0:01:27.9]} 48... Kd6 {[%clk 0:00:36.5]} 49. axb6 {[%clk 0:01:24.6]}
49... axb6 {[%clk 0:00:38.4]} 50. Ba4 {[%clk 0:01:22.8]} 50... Na6 {[%clk
0:00:35.7]} 51. Bb5 {[%clk 0:01:21.2]} 51... Nb8 {[%clk 0:00:35.6]} 52. Bf2
{[%clk 0:01:19.6]} 52... Nc6 {[%clk 0:00:35.1]} 53. Ba4 {[%clk 0:01:16]} 53...
Nd4 {[%clk 0:00:30.9]} 54. Be3 {[%clk 0:01:08.5]} 54... Bc7 {[%clk 0:00:28.6]}
55. Be8 {[%clk 0:01:08.4]} 55... Ne2 {[%clk 0:00:21.5]} 56. b5 {[%clk
0:01:02.7]} 56... Nd4 {[%clk 0:00:20]} 57. Bc6 {[%clk 0:01:01.2]} 57... Nxc6
{[%clk 0:00:18.8]} 58. bxc6 {[%clk 0:01:01.8]} 58... Kxc6 {[%clk 0:00:20.7]} 59.
Bc1 {[%clk 0:01:01.9]} 59... Bd6 {[%clk 0:00:21.5]} 60. Bd2 {[%clk 0:01:01.1]}
60... b5+ {[%clk 0:00:22.8]} 61. Kb3 {[%clk 0:01:01.8]} 61... Kc5 {[%clk
0:00:23.6]} 62. Bb4+ {[%clk 0:01:02.1]} 62... Kc6 {[%clk 0:00:25.1]} 63. Ba5
{[%clk 0:01:03.5]} 63... Bc7 {[%clk 0:00:25.8]} 64. Bb4 {[%clk 0:01:04.9]} 64...
Bd6 {[%clk 0:00:26.5]} 65. Bd2 {[%clk 0:01:05.7]} 65... Kc5 {[%clk 0:00:16.3]}
66. Be3+ {[%clk 0:01:06.8]} 66... Kc6 {[%clk 0:00:16.9]} 67. Bf2 {[%clk
0:01:07.9]} 67... Bc5 {[%clk 0:00:18.1]} 68. Be1 {[%clk 0:01:09.3]} 68... Be7
{[%clk 0:00:17.7]} 69. Ba5 {[%clk 0:01:10]} 69... Kd7 {[%clk 0:00:16.4]} 70. Kc3
{[%clk 0:01:09.7]} 70... Bc5 {[%clk 0:00:14.9]} 71. Kd3 {[%clk 0:01:09.5]} 71...
Be7 {[%clk 0:00:14.3]} 72. Kc3 {[%clk 0:01:09]} 72... Bc5 {[%clk 0:00:15.5]} 73.
Kc2 {[%clk 0:01:09.8]} 73... Be7 {[%clk 0:00:16.9]} 74. Bb6 {[%clk 0:01:10.1]}
74... Kc6 {[%clk 0:00:18.3]} 75. Ba5 {[%clk 0:01:11.2]} 75... Kc5 {[%clk
0:00:18]} 76. Kc3 {[%clk 0:01:11.8]} 76... Kc6 {[%clk 0:00:19.1]} 77. Kb3 {[%clk
0:01:12.8]} 77... Kd7 {[%clk 0:00:20.2]} 78. Be1 {[%clk 0:01:10.8]} 78... Kc6
{[%clk 0:00:21.4]} 79. Bf2 {[%clk 0:01:10.5]} 79... Bc5 {[%clk 0:00:22.4]} 80.
Be1 {[%clk 0:01:12]} 80... Bb6 {[%clk 0:00:23.3]} 81. Bd2 {[%clk 0:01:11.4]}
81... Kc5 {[%clk 0:00:22.4]} 82. Be3+ {[%clk 0:01:12.8]} 82... Kc6 {[%clk
0:00:23.5]} 83. Bc1 {[%clk 0:01:14.3]} 83... Bc5 {[%clk 0:00:24.4]} 84. Bd2
{[%clk 0:01:15]} 84... Bd6 {[%clk 0:00:25.7]} 85. Ba5 {[%clk 0:01:15.7]} 85...
Be7 {[%clk 0:00:26.5]} 86. Kc3 {[%clk 0:01:15.8]} 86... Kd7 {[%clk 0:00:26.2]}
87. Kd3 {[%clk 0:01:13.6]} 87... Kc6 {[%clk 0:00:27.3]} 88. Kc3 {[%clk
0:01:13.5]} 88... Kb7 {[%clk 0:00:27.5]} 89. Kb3 {[%clk 0:01:13.3]} 89... Ka7
{[%clk 0:00:25.5]} 90. Bd2 {[%clk 0:01:11.3]} 90... Ka6 {[%clk 0:00:26]} 91. Be3
{[%clk 0:01:11.6]} 91... Kb7 {[%clk 0:00:27.1]} 92. Bd2 {[%clk 0:01:12.3]} 92...
Kc6 {[%clk 0:00:28.3]} 93. Ba5 {[%clk 0:01:12.9]} 93... Kb7 {[%clk 0:00:28.4]}
94. Kc3 {[%clk 0:01:13]} 94... Ka7 {[%clk 0:00:28.1]} 95. Kd3 {[%clk 0:01:10.6]}
95... Ka6 {[%clk 0:00:25]} 96. Bc7 {[%clk 0:01:10.5]} 96... Kb7 {[%clk
0:00:24.1]} 97. Ba5 {[%clk 0:01:11.1]} 97... Ka6 {[%clk 0:00:22.4]} 98. Bc7
{[%clk 0:01:10.7]} 98... b4 {[%clk 0:00:22.7]} 99. Kc4 {[%clk 0:01:11.4]} 99...
b3 {[%clk 0:00:23]} 100. Kxb3 {[%clk 0:01:12.5]} 100... Kb5 {[%clk 0:00:24.6]}
101. Kc3 {[%clk 0:01:13.8]} 101... Kc5 {[%clk 0:00:25.4]} 102. Ba5 {[%clk
0:01:15]} 102... Kb5 {[%clk 0:00:26.3]} 103. Bc7 {[%clk 0:01:15.4]} 103... Bb4+
{[%clk 0:00:27.4]} 104. Kd3 {[%clk 0:01:15.7]} 104... Be7 {[%clk 0:00:28.9]}
105. Bb8 {[%clk 0:01:14]} 105... Kb4 {[%clk 0:00:29.2]} 106. Ba7 {[%clk
0:01:13.2]} 106... Kb3 {[%clk 0:00:29.6]} 107. Bb6 {[%clk 0:01:14.1]} 107... Kb4
{[%clk 0:00:30.5]} 108. Bc7 {[%clk 0:01:14.7]} 108... Kb5 {[%clk 0:00:31.6]}
109. Kc3 {[%clk 0:01:15]} 109... Kc6 {[%clk 0:00:31.7]} 110. Ba5 {[%clk
0:01:13.3]} 110... Kb5 {[%clk 0:00:30.9]} 111. Bc7 {[%clk 0:01:14.6]} 111... Kc6
{[%clk 0:00:32.8]} 112. Ba5 {[%clk 0:01:14.3]} 112... Kc5 {[%clk 0:00:33.5]}
113. Bb4+ {[%clk 0:01:15.1]} 113... Kc6 {[%clk 0:00:34.6]} 114. Bxe7 {[%clk
0:01:17]} 1-0